[Event "*** Titled Tuesday Blitz"]
[Site "Chess.com"]
[Date "2020.04.07"]
[Round "3"]
[White "Skatchkov_V"]
[Black "Ceejay271"]
[Result "0-1"]
[WhiteElo "2536"]
[BlackElo "2310"]
[TimeControl "180+1"]
[EndTime "13:32:17 PDT"]
[Termination "Ceejay271 won by checkmate"]

1. d4 {[%clk 0:03:00.9]} 1... Nf6 {[%clk 0:02:59.4]} 2. c4 {[%clk 0:03:00.9]}
2... e6 {[%clk 0:02:59.3]} 3. Nf3 {[%clk 0:03:01.1]} 3... d5 {[%clk 0:02:59.1]}
4. g3 {[%clk 0:02:59.7]} 4... Bb4+ {[%clk 0:02:58.5]} 5. Bd2 {[%clk 0:02:59.1]}
5... Be7 {[%clk 0:02:58.4]} 6. Bg2 {[%clk 0:02:59.3]} 6... O-O {[%clk 0:02:59]}
7. Qc2 {[%clk 0:02:56.5]} 7... Nbd7 {[%clk 0:02:58.7]} 8. O-O {[%clk 0:02:56.2]}
8... Ne4 {[%clk 0:02:56.9]} 9. Bf4 {[%clk 0:02:49.4]} 9... c6 {[%clk 0:02:56.5]}
10. h4 {[%clk 0:02:47.9]} 10... f5 {[%clk 0:02:37.8]} 11. Nc3 {[%clk 0:02:44]}
11... h6 {[%clk 0:02:31.4]} 12. Ne5 {[%clk 0:02:36.2]} 12... Ndf6 {[%clk
0:02:27.9]} 13. Ng6 {[%clk 0:02:32.1]} 13... Re8 {[%clk 0:02:24.8]} 14. Rad1
{[%clk 0:01:47.8]} 14... Kh7 {[%clk 0:02:23.8]} 15. Nxe7 {[%clk 0:01:45.2]}
15... Qxe7 {[%clk 0:02:24.3]} 16. Nxe4 {[%clk 0:01:42.4]} 16... Nxe4 {[%clk
0:02:22.3]} 17. f3 {[%clk 0:01:41.6]} 17... Nd6 {[%clk 0:02:17.6]} 18. c5 {[%clk
0:01:36.1]} 18... Nf7 {[%clk 0:02:16.9]} 19. e4 {[%clk 0:01:36.1]} 19... Bd7
{[%clk 0:01:40]} 20. Rde1 {[%clk 0:01:22]} 20... Qf8 {[%clk 0:01:35.8]} 21. exf5
{[%clk 0:01:19.4]} 21... exf5 {[%clk 0:01:34.8]} 22. Bh3 {[%clk 0:01:19.1]}
22... g6 {[%clk 0:01:32.5]} 23. h5 {[%clk 0:01:18.9]} 23... Ng5 {[%clk
0:01:23.8]} 24. hxg6+ {[%clk 0:01:18.3]} 24... Kxg6 {[%clk 0:01:23.2]} 25. Bg2
{[%clk 0:01:14.5]} 25... Rxe1 {[%clk 0:01:21.7]} 26. Rxe1 {[%clk 0:01:14.3]}
26... Re8 {[%clk 0:01:22.3]} 27. Be5 {[%clk 0:01:10.2]} 27... Nf7 {[%clk
0:01:20]} 28. f4 {[%clk 0:01:06.2]} 28... Nxe5 {[%clk 0:01:16.8]} 29. fxe5
{[%clk 0:01:05.8]} 29... Kg7 {[%clk 0:01:08]} 30. Rf1 {[%clk 0:01:01.4]} 30...
Qf7 {[%clk 0:00:59.4]} 31. Rf4 {[%clk 0:00:57.5]} 31... Qg6 {[%clk 0:00:53.8]}
32. Kf2 {[%clk 0:00:56.8]} 32... Kh7 {[%clk 0:00:50.7]} 33. Qb3 {[%clk
0:00:55.3]} 33... Bc8 {[%clk 0:00:50.5]} 34. Qf3 {[%clk 0:00:52.7]} 34... Rf8
{[%clk 0:00:46.8]} 35. Qa3 {[%clk 0:00:50.1]} 35... a6 {[%clk 0:00:46]} 36. Qf3
{[%clk 0:00:49.7]} 36... Rf7 {[%clk 0:00:45.2]} 37. Bf1 {[%clk 0:00:49.1]} 37...
Kg7 {[%clk 0:00:42.5]} 38. Bd3 {[%clk 0:00:48.7]} 38... Qg5 {[%clk 0:00:41.6]}
39. Ke1 {[%clk 0:00:40]} 39... Be6 {[%clk 0:00:40]} 40. Kd1 {[%clk 0:00:38.5]}
40... Kf8 {[%clk 0:00:34.6]} 41. Kc2 {[%clk 0:00:37]} 41... Ke7 {[%clk
0:00:33.5]} 42. Kb3 {[%clk 0:00:27.6]} 42... h5 {[%clk 0:00:26.3]} 43. Kb4
{[%clk 0:00:24.2]} 43... Kd7 {[%clk 0:00:25.6]} 44. Kc3 {[%clk 0:00:20.8]} 44...
Kc7 {[%clk 0:00:25.3]} 45. Kc2 {[%clk 0:00:20.7]} 45... Kb8 {[%clk 0:00:23.9]}
46. Rh4 {[%clk 0:00:20.8]} 46... Rh7 {[%clk 0:00:23.1]} 47. Be2 {[%clk 0:00:21]}
47... Bf7 {[%clk 0:00:22.3]} 48. Rf4 {[%clk 0:00:21]} 48... Be6 {[%clk
0:00:22.1]} 49. Qe3 {[%clk 0:00:20.2]} 49... Ka8 {[%clk 0:00:19.8]} 50. Qf3
{[%clk 0:00:19.7]} 50... Kb8 {[%clk 0:00:19.5]} 51. Rh4 {[%clk 0:00:18.2]} 51...
Bf7 {[%clk 0:00:18.7]} 52. Qf4 {[%clk 0:00:18]} 52... Qxf4 {[%clk 0:00:18.1]}
53. Rxf4 {[%clk 0:00:15]} 53... Be6 {[%clk 0:00:18.2]} 54. Kd2 {[%clk 0:00:14]}
54... Kc7 {[%clk 0:00:17.6]} 55. Ke3 {[%clk 0:00:13.8]} 55... Kd7 {[%clk
0:00:18.1]} 56. Kf2 {[%clk 0:00:13.5]} 56... Ke7 {[%clk 0:00:18.2]} 57. Rh4
{[%clk 0:00:13]} 57... Bf7 {[%clk 0:00:17.9]} 58. Ke3 {[%clk 0:00:12.9]} 58...
Rg7 {[%clk 0:00:16.1]} 59. Kf4 {[%clk 0:00:12.6]} 59... Ke6 {[%clk 0:00:13.9]}
60. Bxh5 {[%clk 0:00:12.2]} 60... Bxh5 {[%clk 0:00:13.1]} 61. Rxh5 {[%clk
0:00:11.9]} 61... Rg4+ {[%clk 0:00:14]} 62. Ke3 {[%clk 0:00:10]} 62... Rxg3+
{[%clk 0:00:14.4]} 63. Kf2 {[%clk 0:00:09.7]} 63... Rg7 {[%clk 0:00:14.4]} 64.
Rh6+ {[%clk 0:00:08.8]} 64... Ke7 {[%clk 0:00:14.8]} 65. Rf6 {[%clk 0:00:07.7]}
65... Rg4 {[%clk 0:00:14.9]} 66. Rxf5 {[%clk 0:00:06.7]} 66... Rxd4 {[%clk
0:00:14.7]} 67. Rg5 {[%clk 0:00:06.4]} 67... Rd2+ {[%clk 0:00:14.5]} 68. Ke3
{[%clk 0:00:05.9]} 68... Rxb2 {[%clk 0:00:15]} 69. Kf4 {[%clk 0:00:05.3]} 69...
Rf2+ {[%clk 0:00:14.5]} 70. Ke3 {[%clk 0:00:05.1]} 70... Rxa2 {[%clk 0:00:15.4]}
71. Rg7+ {[%clk 0:00:04.4]} 71... Ke6 {[%clk 0:00:16]} 72. Kd4 {[%clk
0:00:03.7]} 72... Ra4+ {[%clk 0:00:15.2]} 73. Ke3 {[%clk 0:00:02.4]} 73... Kxe5
{[%clk 0:00:15.5]} 74. Rxb7 {[%clk 0:00:03.3]} 74... Rc4 {[%clk 0:00:15.6]} 75.
Re7+ {[%clk 0:00:01.9]} 75... Kf6 {[%clk 0:00:15.6]} 76. Ra7 {[%clk 0:00:01.6]}
76... Rxc5 {[%clk 0:00:15.9]} 77. Rxa6 {[%clk 0:00:02.5]} 77... Ke5 {[%clk
0:00:16]} 78. Kd2 {[%clk 0:00:03.4]} 78... Rc4 {[%clk 0:00:16]} 79. Ra8 {[%clk
0:00:04.3]} 79... c5 {[%clk 0:00:14.9]} 80. Rh8 {[%clk 0:00:05.2]} 80... Rf4
{[%clk 0:00:14.4]} 81. Rh5+ {[%clk 0:00:05.5]} 81... Kd4 {[%clk 0:00:14.3]} 82.
Rh8 {[%clk 0:00:06.4]} 82... Rf2+ {[%clk 0:00:14.2]} 83. Kd1 {[%clk 0:00:06.4]}
83... Rf4 {[%clk 0:00:15.1]} 84. Rh3 {[%clk 0:00:05.9]} 84... c4 {[%clk
0:00:15.4]} 85. Rg3 {[%clk 0:00:06.1]} 85... c3 {[%clk 0:00:15.1]} 86. Kc2
{[%clk 0:00:05.7]} 86... Rf2+ {[%clk 0:00:13.9]} 87. Kd1 {[%clk 0:00:04.7]}
87... Kc4 {[%clk 0:00:14.2]} 88. Rg8 {[%clk 0:00:04.8]} 88... d4 {[%clk
0:00:14.2]} 89. Kc1 {[%clk 0:00:05]} 89... Rf3 {[%clk 0:00:12.5]} 90. Kc2 {[%clk
0:00:03]} 90... d3+ {[%clk 0:00:12.9]} 91. Kc1 {[%clk 0:00:03.8]} 91... Rf1#
{[%clk 0:00:12.8]} 0-1

[Event "*** Titled Tuesday Blitz"]
[Site "Chess.com"]
[Date "2020.04.07"]
[Round "3"]
[White "nickmatta"]
[Black "Vamostodorecto"]
[Result "1/2-1/2"]
[WhiteElo "2236"]
[BlackElo "2409"]
[TimeControl "180+1"]
[EndTime "13:33:11 PDT"]
[Termination "Game drawn by stalemate"]

1. d4 {[%clk 0:03:00.9]} 1... d5 {[%clk 0:02:56.3]} 2. c4 {[%clk 0:03:01.2]}
2... c6 {[%clk 0:02:56.3]} 3. Nf3 {[%clk 0:03:01.7]} 3... dxc4 {[%clk
0:02:56.8]} 4. Nc3 {[%clk 0:03:02.6]} 4... b5 {[%clk 0:02:55]} 5. a4 {[%clk
0:02:58.3]} 5... a6 {[%clk 0:02:54.2]} 6. axb5 {[%clk 0:02:56.8]} 6... cxb5
{[%clk 0:02:55.1]} 7. Nxb5 {[%clk 0:02:57.5]} 7... axb5 {[%clk 0:02:55.8]} 8.
Rxa8 {[%clk 0:02:57.1]} 8... Bb7 {[%clk 0:02:56.5]} 9. Ra1 {[%clk 0:02:57.2]}
9... e6 {[%clk 0:02:55.2]} 10. e3 {[%clk 0:02:57.3]} 10... Nf6 {[%clk
0:02:52.1]} 11. Be2 {[%clk 0:02:56.9]} 11... Bd6 {[%clk 0:02:45.8]} 12. O-O
{[%clk 0:02:55.7]} 12... O-O {[%clk 0:02:44]} 13. Bd2 {[%clk 0:02:55]} 13... Qc7
{[%clk 0:02:40.9]} 14. h3 {[%clk 0:02:52.5]} 14... Nc6 {[%clk 0:02:39.6]} 15. b3
{[%clk 0:02:51.3]} 15... e5 {[%clk 0:02:18.8]} 16. bxc4 {[%clk 0:02:48.1]} 16...
bxc4 {[%clk 0:02:12.1]} 17. dxe5 {[%clk 0:02:20.3]} 17... Nxe5 {[%clk
0:02:10.9]} 18. Ba5 {[%clk 0:02:20.8]} 18... Qc6 {[%clk 0:02:07]} 19. Qa4 {[%clk
0:02:13.1]} 19... Qc8 {[%clk 0:01:50.3]} 20. Nxe5 {[%clk 0:02:03.3]} 20... Bxe5
{[%clk 0:01:51]} 21. Rac1 {[%clk 0:02:04.2]} 21... Qa8 {[%clk 0:01:39.3]} 22.
Qb5 {[%clk 0:01:32.7]} 22... Bxg2 {[%clk 0:01:31.2]} 23. Qxe5 {[%clk 0:01:32]}
23... Bxh3 {[%clk 0:01:24.2]} 24. f3 {[%clk 0:01:00.6]} 24... Re8 {[%clk
0:01:19.8]} 25. Qc5 {[%clk 0:00:51.2]} 25... Bxf1 {[%clk 0:00:58.4]} 26. Kxf1
{[%clk 0:00:52.1]} 26... Ng4 {[%clk 0:00:50]} 27. Bd2 {[%clk 0:00:32.6]} 27...
Ne5 {[%clk 0:00:40]} 28. e4 {[%clk 0:00:21.3]} 28... Qd8 {[%clk 0:00:37.3]} 29.
Bf4 {[%clk 0:00:15.3]} 29... Nd3 {[%clk 0:00:36]} 30. Bxd3 {[%clk 0:00:15.6]}
30... cxd3 {[%clk 0:00:29.5]} 31. Qe3 {[%clk 0:00:08.8]} 31... f5 {[%clk
0:00:19.1]} 32. e5 {[%clk 0:00:04.7]} 32... Qh4 {[%clk 0:00:14]} 33. Qxd3 {[%clk
0:00:02.1]} 33... Qxf4 {[%clk 0:00:11.4]} 34. Qc4+ {[%clk 0:00:02.4]} 34...
Qxc4+ {[%clk 0:00:09.7]} 35. Rxc4 {[%clk 0:00:03.3]} 35... Rxe5 {[%clk 0:00:10]}
36. Kf2 {[%clk 0:00:04]} 36... Kf7 {[%clk 0:00:08.9]} 37. Kg3 {[%clk 0:00:04.1]}
37... Kg6 {[%clk 0:00:08.5]} 38. Rc6+ {[%clk 0:00:03.6]} 38... Kf7 {[%clk
0:00:07.9]} 39. Kf4 {[%clk 0:00:03.6]} 39... Ra5 {[%clk 0:00:07.7]} 40. Rc7+
{[%clk 0:00:04.2]} 40... Kf6 {[%clk 0:00:07.8]} 41. Rc6+ {[%clk 0:00:04.7]}
41... Kf7 {[%clk 0:00:07.4]} 42. Rc7+ {[%clk 0:00:05.3]} 42... Kg6 {[%clk
0:00:08]} 43. Rc6+ {[%clk 0:00:05.7]} 43... Kh5 {[%clk 0:00:08.3]} 44. Rc7
{[%clk 0:00:04.7]} 44... Kh6 {[%clk 0:00:08.3]} 45. Rc6+ {[%clk 0:00:04]} 45...
g6 {[%clk 0:00:08.7]} 46. Rc7 {[%clk 0:00:03.9]} 46... Ra4+ {[%clk 0:00:09.1]}
47. Kg3 {[%clk 0:00:04.3]} 47... Rb4 {[%clk 0:00:07.5]} 48. Rd7 {[%clk 0:00:04]}
48... f4+ {[%clk 0:00:06.7]} 49. Kg4 {[%clk 0:00:04.2]} 49... Rc4 {[%clk
0:00:06.5]} 50. Ra7 {[%clk 0:00:04]} 50... Rc5 {[%clk 0:00:04.9]} 51. Kxf4
{[%clk 0:00:03.8]} 51... Rf5+ {[%clk 0:00:05]} 52. Kg4 {[%clk 0:00:04.1]} 52...
Rf8 {[%clk 0:00:05.7]} 53. f4 {[%clk 0:00:04]} 53... Rg8 {[%clk 0:00:05.8]} 54.
Rb7 {[%clk 0:00:03.9]} 54... Rg7 {[%clk 0:00:06]} 55. Rb3 {[%clk 0:00:04.3]}
55... Rf7 {[%clk 0:00:06.2]} 56. Rh3+ {[%clk 0:00:04.1]} 56... Kg7 {[%clk
0:00:06.7]} 57. Rb3 {[%clk 0:00:04.8]} 57... h5+ {[%clk 0:00:06.9]} 58. Kg3
{[%clk 0:00:04.6]} 58... Kh6 {[%clk 0:00:07.2]} 59. Rb6 {[%clk 0:00:04.3]} 59...
Rf5 {[%clk 0:00:04.9]} 60. Rc6 {[%clk 0:00:04.3]} 60... Rb5 {[%clk 0:00:04.7]}
61. Kh4 {[%clk 0:00:02.1]} 61... Rb4 {[%clk 0:00:04.1]} 62. Rf6 {[%clk
0:00:01.6]} 62... Rc4 {[%clk 0:00:02.4]} 63. Rf8 {[%clk 0:00:01.3]} 63... Kg7
{[%clk 0:00:02.5]} 64. Rb8 {[%clk 0:00:01.7]} 64... Kf6 {[%clk 0:00:02.6]} 65.
Kg3 {[%clk 0:00:02.6]} 65... Rc3+ {[%clk 0:00:02.4]} 66. Kf2 {[%clk 0:00:02.7]}
66... Rc6 {[%clk 0:00:03.3]} 67. Rb4 {[%clk 0:00:03.1]} 67... Kf5 {[%clk
0:00:03.5]} 68. Kf3 {[%clk 0:00:03.6]} 68... Rc3+ {[%clk 0:00:03.7]} 69. Kg2
{[%clk 0:00:03.9]} 69... Ra3 {[%clk 0:00:04.6]} 70. Rc4 {[%clk 0:00:03.6]} 70...
Kg4 {[%clk 0:00:04.9]} 71. f5+ {[%clk 0:00:03.5]} 71... Kxf5 {[%clk 0:00:03.8]}
72. Rc5+ {[%clk 0:00:04.4]} 72... Kf6 {[%clk 0:00:04]} 73. Rc6+ {[%clk
0:00:04.8]} 73... Kg5 {[%clk 0:00:04.3]} 74. Rc5+ {[%clk 0:00:05.3]} 74... Kh6
{[%clk 0:00:04.8]} 75. Rb5 {[%clk 0:00:05.4]} 75... Ra4 {[%clk 0:00:05.3]} 76.
Kg3 {[%clk 0:00:06.3]} 76... Rg4+ {[%clk 0:00:05.7]} 77. Kh3 {[%clk 0:00:06.3]}
77... Rg5 {[%clk 0:00:05.9]} 78. Rb8 {[%clk 0:00:06.3]} 78... Rf5 {[%clk
0:00:06.1]} 79. Kh4 {[%clk 0:00:06.9]} 79... Rf4+ {[%clk 0:00:05.6]} 80. Kg3
{[%clk 0:00:07.8]} 80... Kg5 {[%clk 0:00:06.2]} 81. Kh3 {[%clk 0:00:08.7]} 81...
Kf5 {[%clk 0:00:06.7]} 82. Rb5+ {[%clk 0:00:08.9]} 82... Kf6 {[%clk 0:00:04.2]}
83. Rb6+ {[%clk 0:00:09.4]} 83... Kg5 {[%clk 0:00:04]} 84. Kg3 {[%clk
0:00:10.3]} 84... Rf5 {[%clk 0:00:04.9]} 85. Kh3 {[%clk 0:00:11.1]} 85... Re5
{[%clk 0:00:04.5]} 86. Kg3 {[%clk 0:00:11.4]} 86... Re3+ {[%clk 0:00:04.8]} 87.
Kf2 {[%clk 0:00:12]} 87... Ra3 {[%clk 0:00:04.9]} 88. Rb5+ {[%clk 0:00:11.1]}
88... Kh4 {[%clk 0:00:04.9]} 89. Kg2 {[%clk 0:00:10.6]} 89... g5 {[%clk
0:00:04.2]} 90. Rb8 {[%clk 0:00:07.5]} 90... g4 {[%clk 0:00:04.5]} 91. Rb2
{[%clk 0:00:06.1]} 91... Rf3 {[%clk 0:00:04]} 92. Rd2 {[%clk 0:00:05.1]} 92...
Kg5 {[%clk 0:00:04.3]} 93. Rd5+ {[%clk 0:00:04.6]} 93... Rf5 {[%clk 0:00:03.7]}
94. Rd2 {[%clk 0:00:04.8]} 94... h4 {[%clk 0:00:04.4]} 95. Rb2 {[%clk
0:00:04.2]} 95... h3+ {[%clk 0:00:05.3]} 96. Kg3 {[%clk 0:00:04.8]} 96... Rf3+
{[%clk 0:00:04.9]} 97. Kh2 {[%clk 0:00:05.7]} 97... Kh4 {[%clk 0:00:05.2]} 98.
Rb4 {[%clk 0:00:04.6]} 98... Rf2+ {[%clk 0:00:04]} 99. Kg1 {[%clk 0:00:05.5]}
99... Kg3 {[%clk 0:00:03.6]} 100. Rxg4+ {[%clk 0:00:04.5]} 100... Kxg4 {[%clk
0:00:03.9]} 101. Kxf2 {[%clk 0:00:05.4]} 101... Kf4 {[%clk 0:00:03.8]} 102. Kg1
{[%clk 0:00:05]} 102... Kg3 {[%clk 0:00:04.7]} 103. Kh1 {[%clk 0:00:05.9]}
103... h2 {[%clk 0:00:03.2]} 1/2-1/2

[Event "*** Titled Tuesday Blitz"]
[Site "Chess.com"]
[Date "2020.04.07"]
[Round "4"]
[White "StarkAst"]
[Black "Rubinstein_Akiba"]
[Result "1-0"]
[WhiteElo "2595"]
[BlackElo "2355"]
[TimeControl "180+1"]
[EndTime "13:35:12 PDT"]
[Termination "StarkAst won by resignation"]

1. e4 {[%clk 0:03:00.6]} 1... c5 {[%clk 0:02:59.9]} 2. Nc3 {[%clk 0:03:00.3]}
2... Nc6 {[%clk 0:02:58.9]} 3. Nf3 {[%clk 0:03:00.3]} 3... e5 {[%clk 0:02:57.6]}
4. Bc4 {[%clk 0:03:00]} 4... Be7 {[%clk 0:02:58]} 5. O-O {[%clk 0:02:59.9]} 5...
Nf6 {[%clk 0:02:58.4]} 6. Ng5 {[%clk 0:02:59.1]} 6... O-O {[%clk 0:02:57.7]} 7.
f4 {[%clk 0:02:59.4]} 7... d5 {[%clk 0:02:54.9]} 8. exd5 {[%clk 0:02:56.7]} 8...
exf4 {[%clk 0:02:54.9]} 9. Rxf4 {[%clk 0:02:46.8]} 9... Nxd5 {[%clk 0:02:47.1]}
10. Nxf7 {[%clk 0:02:45.3]} 10... Qc7 {[%clk 0:02:28.8]} 11. Nxd5 {[%clk
0:02:33]} 11... Qa5 {[%clk 0:02:26.3]} 12. Nxe7+ {[%clk 0:02:30.5]} 12... Nxe7
{[%clk 0:02:26]} 13. Nh6+ {[%clk 0:02:30.6]} 1-0

[Event "*** Titled Tuesday Blitz"]
[Site "Chess.com"]
[Date "2020.04.07"]
[Round "4"]
[White "Obito24"]
[Black "HElissalt"]
[Result "1-0"]
[WhiteElo "2736"]
[BlackElo "2074"]
[TimeControl "180+1"]
[EndTime "13:35:15 PDT"]
[Termination "Obito24 won by resignation"]

1. d4 {[%clk 0:03:00.9]} 1... d5 {[%clk 0:02:58.7]} 2. c4 {[%clk 0:02:58.6]}
2... e6 {[%clk 0:02:58.7]} 3. Nc3 {[%clk 0:02:52.8]} 3... Bb4 {[%clk 0:02:58.3]}
4. Nf3 {[%clk 0:02:52.8]} 4... Nf6 {[%clk 0:02:54.9]} 5. Bg5 {[%clk 0:02:52.8]}
5... Nbd7 {[%clk 0:02:47.8]} 6. e3 {[%clk 0:02:52.4]} 6... c5 {[%clk 0:02:46.8]}
7. cxd5 {[%clk 0:02:52.5]} 7... exd5 {[%clk 0:02:46.3]} 8. Bd3 {[%clk 0:02:53]}
8... Qa5 {[%clk 0:02:45.3]} 9. Qc2 {[%clk 0:02:53.4]} 9... c4 {[%clk 0:02:44.4]}
10. Bf5 {[%clk 0:02:52.3]} 10... O-O {[%clk 0:02:42.7]} 11. O-O {[%clk
0:02:52.1]} 11... Qa6 {[%clk 0:02:40.2]} 12. Bxd7 {[%clk 0:02:40.8]} 12... Bxd7
{[%clk 0:02:17.5]} 13. Bxf6 {[%clk 0:02:40]} 1-0

[Event "*** Titled Tuesday Blitz"]
[Site "Chess.com"]
[Date "2020.04.07"]
[Round "4"]
[White "MacDaddyMac"]
[Black "RobertoRochaMAO"]
[Result "1-0"]
[WhiteElo "2300"]
[BlackElo "1991"]
[TimeControl "180+1"]
[EndTime "13:36:07 PDT"]
[Termination "MacDaddyMac won by resignation"]

1. e4 {[%clk 0:03:00.9]} 1... c5 {[%clk 0:02:59.6]} 2. Nc3 {[%clk 0:03:00.6]}
2... Nc6 {[%clk 0:02:59]} 3. f4 {[%clk 0:02:59.7]} 3... g6 {[%clk 0:02:58.4]} 4.
Nf3 {[%clk 0:03:00]} 4... Bg7 {[%clk 0:02:58.4]} 5. Bb5 {[%clk 0:03:00.6]} 5...
d6 {[%clk 0:02:58.1]} 6. O-O {[%clk 0:03:01.2]} 6... Bd7 {[%clk 0:02:58.2]} 7.
d3 {[%clk 0:03:01.4]} 7... a6 {[%clk 0:02:58.5]} 8. Bxc6 {[%clk 0:03:00.4]} 8...
Bxc6 {[%clk 0:02:58.6]} 9. Qe1 {[%clk 0:03:01.3]} 9... Nf6 {[%clk 0:02:43.9]}
10. Qh4 {[%clk 0:02:57.6]} 10... e6 {[%clk 0:02:30.9]} 11. f5 {[%clk 0:02:55.8]}
11... exf5 {[%clk 0:02:19.8]} 12. exf5 {[%clk 0:02:53.8]} 12... Bxf3 {[%clk
0:02:01.1]} 13. Rxf3 {[%clk 0:02:52.4]} 13... O-O {[%clk 0:02:00]} 14. Bg5
{[%clk 0:02:41.9]} 14... b5 {[%clk 0:01:50.1]} 15. Ne4 {[%clk 0:02:32.5]} 15...
c4 {[%clk 0:01:40.6]} 16. Nxf6+ {[%clk 0:02:31.7]} 1-0

[Event "*** Titled Tuesday Blitz"]
[Site "Chess.com"]
[Date "2020.04.07"]
[Round "4"]
[White "Everyfishknows"]
[Black "stoleriu"]
[Result "1/2-1/2"]
[WhiteElo "2356"]
[BlackElo "2550"]
[TimeControl "180+1"]
[EndTime "13:36:19 PDT"]
[Termination "Game drawn by agreement"]

1. d4 {[%clk 0:03:00.9]} 1... e6 {[%clk 0:03:00]} 2. e4 {[%clk 0:03:00.1]} 2...
d5 {[%clk 0:02:59.3]} 3. Nd2 {[%clk 0:03:00.7]} 3... Be7 {[%clk 0:02:59]} 4.
Ngf3 {[%clk 0:02:59.6]} 4... Nf6 {[%clk 0:02:58.8]} 5. Bd3 {[%clk 0:02:57]} 5...
c5 {[%clk 0:02:57.8]} 6. c3 {[%clk 0:02:55.1]} 6... Nc6 {[%clk 0:02:57.2]} 7. e5
{[%clk 0:02:53]} 7... Nd7 {[%clk 0:02:56.1]} 8. O-O {[%clk 0:02:51.9]} 8... g5
{[%clk 0:02:55.7]} 9. dxc5 {[%clk 0:02:39.8]} 9... g4 {[%clk 0:02:55.3]} 10. Nd4
{[%clk 0:02:33.4]} 10... Ndxe5 {[%clk 0:02:55]} 11. N2b3 {[%clk 0:02:25.7]}
11... h5 {[%clk 0:02:48.5]} 12. Re1 {[%clk 0:02:21.2]} 12... Nxd3 {[%clk
0:02:47.2]} 13. Qxd3 {[%clk 0:02:20.9]} 13... Bd7 {[%clk 0:02:45.4]} 14. Bf4
{[%clk 0:02:10.5]} 14... Bf6 {[%clk 0:02:41.5]} 15. Bd6 {[%clk 0:01:52.4]} 15...
a6 {[%clk 0:02:26]} 1/2-1/2

[Event "*** Titled Tuesday Blitz"]
[Site "Chess.com"]
[Date "2020.04.07"]
[Round "4"]
[White "ApacheSVD"]
[Black "Qingdom"]
[Result "1-0"]
[WhiteElo "2350"]
[BlackElo "2104"]
[TimeControl "180+1"]
[EndTime "13:36:22 PDT"]
[Termination "ApacheSVD won by resignation"]

1. e4 {[%clk 0:03:00.9]} 1... c5 {[%clk 0:03:00]} 2. Nf3 {[%clk 0:02:59.5]} 2...
Nc6 {[%clk 0:03:00]} 3. d4 {[%clk 0:02:56.3]} 3... cxd4 {[%clk 0:03:00]} 4. Nxd4
{[%clk 0:02:57.2]} 4... e5 {[%clk 0:02:59.7]} 5. Nb5 {[%clk 0:02:46.6]} 5... d6
{[%clk 0:02:59.8]} 6. c4 {[%clk 0:02:45.2]} 6... Be7 {[%clk 0:02:58.5]} 7. N1c3
{[%clk 0:02:44.7]} 7... a6 {[%clk 0:02:58.1]} 8. Na3 {[%clk 0:02:43.8]} 8... Be6
{[%clk 0:02:57.7]} 9. Nc2 {[%clk 0:02:28.7]} 9... Rc8 {[%clk 0:02:56]} 10. Be2
{[%clk 0:02:24.7]} 10... Bg5 {[%clk 0:02:52.7]} 11. Bxg5 {[%clk 0:02:21.7]}
11... Qxg5 {[%clk 0:02:52.1]} 12. O-O {[%clk 0:02:21.5]} 12... Nge7 {[%clk
0:02:23.3]} 13. b3 {[%clk 0:02:17.5]} 13... O-O {[%clk 0:02:23]} 14. Nd5 {[%clk
0:02:15.1]} 14... Rfd8 {[%clk 0:02:17.5]} 15. Nce3 {[%clk 0:02:11]} 15... Nd4
{[%clk 0:02:16.5]} 16. f4 {[%clk 0:02:06.7]} 16... exf4 {[%clk 0:02:15.9]} 17.
Qxd4 {[%clk 0:02:01.2]} 17... fxe3 {[%clk 0:02:15.1]} 18. Qxe3 {[%clk
0:01:55.2]} 18... Bxd5 {[%clk 0:02:12.9]} 19. Qxg5 {[%clk 0:01:52.7]} 1-0

[Event "*** Titled Tuesday Blitz"]
[Site "Chess.com"]
[Date "2020.04.07"]
[Round "4"]
[White "CarlosAlbornoz"]
[Black "beccrajoy"]
[Result "1-0"]
[WhiteElo "2720"]
[BlackElo "1790"]
[TimeControl "180+1"]
[EndTime "13:36:29 PDT"]
[Termination "CarlosAlbornoz won by resignation"]

1. e4 {[%clk 0:03:00.3]} 1... c5 {[%clk 0:02:58.7]} 2. Nf3 {[%clk 0:03:00.5]}
2... e6 {[%clk 0:02:56.5]} 3. d4 {[%clk 0:02:59.7]} 3... cxd4 {[%clk 0:02:57.4]}
4. Nxd4 {[%clk 0:03:00.1]} 4... a6 {[%clk 0:02:58.3]} 5. c4 {[%clk 0:03:00.2]}
5... Nf6 {[%clk 0:02:57]} 6. Nc3 {[%clk 0:03:00.4]} 6... Bb4 {[%clk 0:02:55.4]}
7. e5 {[%clk 0:02:57.9]} 7... Qa5 {[%clk 0:02:39.4]} 8. exf6 {[%clk 0:02:40.1]}
8... Bxc3+ {[%clk 0:02:39]} 9. bxc3 {[%clk 0:02:40.6]} 9... Qxc3+ {[%clk
0:02:39.9]} 10. Qd2 {[%clk 0:02:40.8]} 10... Qxa1 {[%clk 0:02:36.7]} 11. fxg7
{[%clk 0:02:40.3]} 11... Rg8 {[%clk 0:02:35.7]} 12. Be2 {[%clk 0:02:37.1]} 12...
Nc6 {[%clk 0:02:29.7]} 13. Nxc6 {[%clk 0:02:36.5]} 13... bxc6 {[%clk 0:02:30]}
14. O-O {[%clk 0:02:37.1]} 14... Qxg7 {[%clk 0:02:27.6]} 15. Bf3 {[%clk
0:02:37.1]} 15... h5 {[%clk 0:02:21.1]} 16. Ba3 {[%clk 0:02:33]} 16... d5 {[%clk
0:02:17.1]} 17. cxd5 {[%clk 0:02:32]} 17... cxd5 {[%clk 0:02:13.8]} 18. Qb4
{[%clk 0:02:24.1]} 18... f5 {[%clk 0:02:13.3]} 19. Bxh5+ {[%clk 0:02:22.4]}
19... Kd8 {[%clk 0:02:08.3]} 20. Qd6+ {[%clk 0:02:19.5]} 20... Bd7 {[%clk
0:02:07.9]} 21. Qb6+ {[%clk 0:02:18.4]} 1-0

[Event "*** Titled Tuesday Blitz"]
[Site "Chess.com"]
[Date "2020.04.07"]
[Round "4"]
[White "lIlIlIlI_lIl"]
[Black "CookiesAndIceCream"]
[Result "1-0"]
[WhiteElo "2606"]
[BlackElo "2359"]
[TimeControl "180+1"]
[EndTime "13:36:37 PDT"]
[Termination "lIlIlIlI_lIl won by resignation"]

1. e4 {[%clk 0:03:00.9]} 1... e6 {[%clk 0:02:59.5]} 2. d4 {[%clk 0:03:00.2]}
2... d5 {[%clk 0:02:59.8]} 3. e5 {[%clk 0:03:00.7]} 3... c5 {[%clk 0:02:59.9]}
4. c3 {[%clk 0:03:00.8]} 4... Nc6 {[%clk 0:03:00.2]} 5. Nf3 {[%clk 0:03:01.1]}
5... Qb6 {[%clk 0:03:00.3]} 6. Na3 {[%clk 0:03:01.2]} 6... Nh6 {[%clk 0:02:43]}
7. Nc2 {[%clk 0:03:00.6]} 7... Nf5 {[%clk 0:02:37.5]} 8. Bd3 {[%clk 0:03:00.4]}
8... Be7 {[%clk 0:02:37.7]} 9. O-O {[%clk 0:02:53.8]} 9... cxd4 {[%clk
0:02:34.1]} 10. cxd4 {[%clk 0:02:54.7]} 10... O-O {[%clk 0:02:33.2]} 11. g4
{[%clk 0:02:51.5]} 11... Nh4 {[%clk 0:02:31.2]} 12. Nxh4 {[%clk 0:02:51.6]}
12... Bxh4 {[%clk 0:02:30.9]} 13. g5 {[%clk 0:02:50.3]} 1-0